Cogmind - Beta 13 *** ADVENTURER MODE // 2024.04.01 @ 19:57:21 Player: h3kksyl Result: Destroyed by H-55 Commando with Assault Rifle Performance ------------- Evolutions (3) 1500 Regions Visited (4) 800 Robots Destroyed (78) 390 Value Destroyed (2628) 2628 Prototype IDs (8) 160 Alien Tech Used (0) 0 Bonus (0) 0 TOTAL SCORE: 5478 Bonus ------- None Cogmind --------- Core Integrity 0/700 Matter 42/300 Energy 47/100 System Corruption 16% Temperature Cool (0) Movement Core (1500) Ox29 Location -7/Factory Parts ------- > --- POWER (2) -------- (None) > --- PROPULSION (2) --- (None) > --- UTILITY (6) ------ Huge Storage Unit Improved Signal Interpreter > --- WEAPON (3) ------- Gatling Laser Gauss Rifle > --- INVENTORY (25) --- Cooling System Weight Redist. System Improved Sensor Array Improved Signal Interpreter Improved Targeting Computer Core Analyzer Recoil Stabilizer Recoil Stabilizer Actuator Array ECM Suite ECM Suite Improved Utility Shielding Medium Armor Plating Heavy Armor Plating Hardened Medium Armor Plating Component Analysis Suite Peak State ------------ > --- POWER ------------ Light Deuterium Engine Light Nuclear Core > --- PROPULSION ------- Carbon-fiber Leg Carbon-fiber Leg > --- UTILITY ---------- Cooling System Cooling System Huge Storage Unit Compact Battery Improved Signal Interpreter Hardened Medium Armor Plating > --- WEAPON ----------- Heavy Laser Improved EM Pulse Cannon Advanced Beam Cannon > --- INVENTORY -------- Cooling System Weight Redist. System Improved Sensor Array Improved Signal Interpreter Improved Targeting Computer Core Analyzer Recoil Stabilizer Recoil Stabilizer Actuator Array ECM Suite ECM Suite Improved Utility Shielding Medium Armor Plating Heavy Armor Plating Hardened Medium Armor Plating Hardened Medium Armor Plating Component Analysis Suite Shock Rifle Beam Rifle Pulse Rifle Gatling Laser Gauss Rifle Mini Grenade Launcher Remote Datajack [Rating: 44] Favorites ----------- Power Improved Ion Engine Engine Improved Ion Engine Power Core Light Nuclear Core Propulsion Aluminum Leg Treads Light Treads Leg Aluminum Leg Flight Unit Improved Cesium-ion Thruster Utility Huge Storage Unit Device Cooling System Storage Huge Storage Unit Processor Improved Signal Interpreter Protection Light Armor Plating Weapon Advanced Beam Cannon Energy Gun Pulse Rifle Energy Cannon Advanced Beam Cannon Ballistic Gun Light Assault Rifle Ballistic Cannon Assault Cannon Launcher Mini Grenade Launcher Build | -11 -10 -9 -8 -7 ------- Run | Yrd Mat Mat Mat Fac Slots Evolved 6 | . . 2 2 2 Power 1 | . . . . 1 Propulsion . | . . . . . Utility 4 | . . 2 2 . Weapon 1 | . . . . 1 Parts Attached 77 | 7 8 12 24 26 Power 8 | 1 2 1 2 2 Engine 7 | 1 2 1 2 1 Core 1 | . . . . 1 Reactor . | . . . . . Propulsion 19 | 2 3 2 8 4 Treads 1 | . . . . 1 Leg 15 | 2 3 2 8 . Wheel . | . . . . . Hover . | . . . . . Flight 3 | . . . . 3 Utility 25 | 2 2 5 8 8 Device 12 | 1 1 4 1 5 Storage 3 | 1 1 . . 1 Processor 2 | . . 1 1 . Hackware . | . . . . . Protection 8 | . . . 6 2 Artifact . | . . . . . Weapon 25 | 2 1 4 6 12 Energy Gun 11 | 1 1 . 2 7 Energy Cannon 4 | . . 1 1 2 Ballistic Gun 7 | 1 . 3 1 2 Ballistic Cannon 1 | . . . 1 . Launcher 2 | . . . 1 1 Special Weapon . | . . . . . Impact Weapon . | . . . . . Slashing Weapon . | . . . . . Piercing Weapon . | . . . . . Special Melee Weapon . | . . . . . Unidentified Prototypes 4 | . . 2 . 2 Corrupted Parts 1 | . . . . 1 System Corruption 3 | . . . . 3 Parts Lost 37 | . 2 . 13 22 Power 5 | . 1 . 1 3 Propulsion 10 | . 1 . 4 5 Utility 10 | . . . 5 5 Weapon 12 | . . . 3 9 Highest Loss Streak 8 | . 2 . 8 8 To Critical Strikes . | . . . . . Average Slot Usage (%) 87 | . 94 98 88 79 Engine 6 | . 11 11 8 3 Core 1 | . . . . 3 Leg 14 | . 26 22 17 7 Device 15 | . 12 25 12 12 Storage 11 | . 14 11 9 13 Processor 6 | . . 6 9 7 Protection 6 | . . . 16 7 Energy Gun 8 | . 20 1 2 12 Energy Cannon 4 | . . 1 2 6 Ballistic Gun 6 | . 7 18 5 . Launcher 1 | . . . 1 1 Naked Turns . | . . . . . Heaviest Build 118 | 13 87 97 112 118 Greatest Support 30 | 20 20 20 30 30 Greatest Overweight (x) 33 | . 4 4 9 33 Average Overweight (x) 4 | . . 4 3 6 Largest Inventory Capacity 25 | 8 25 25 25 25 Average Capacity 23 | 6 12 25 25 25 Most Carried 25 | 5 7 22 25 25 Average Carried 18 | 2 4 12 20 22 Final Capacity 25 | 8 25 25 25 25 Final Carried 22 | 3 4 22 20 17 Class Distribution -------------------- 33% | Scavenger-Mutant 22% | Scavenger-Tank 21% | Mutant 15% | Tank 7% | Gunner Dominant Class ---------------- Mutant | -10/Materials Scavenger-Mutant | -9/Materials Scavenger-Mutant | -8/Materials Scavenger-Tank | -7/Factory Resources | -11 -10 -9 -8 -7 ----------- Run | Yrd Mat Mat Mat Fac Matter Collected 1378 | 264 115 211 578 210 Remotely 67 | 67 . . . . Salvage Created 2641 | 202 339 361 1015 724 Parts 147 | 17 19 19 43 49 Haulers Intercepted 2 | . 1 . . 1 Recyclers Shooed 1 | . . . . 1 Parts Field Recycled . | . . . . . Retrieved Matter . | . . . . . Parts Self-Destructed . | . . . . . Prevented . | . . . . . Kills | -11 -10 -9 -8 -7 ------- Run | Yrd Mat Mat Mat Fac Combat Hostiles Destroyed 51 | . 6 7 24 14 Guns 23 | . 6 7 7 3 Cannons 19 | . . . 14 5 AOE 8 | . . . 3 5 Classes Destroyed 11 | 3 4 1 2 1 Worker 5 | 2 . . . 3 Builder 10 | . 1 . . 9 Tunneler 3 | 2 . . . 1 Hauler 2 | . 1 . . 1 Recycler 1 | 1 . . . . Watcher 6 | . 1 2 2 1 Grunt 35 | . 6 6 16 7 Brawler 1 | . . . 1 . Sentry 6 | . . 1 5 . Hunter 3 | . . . 2 1 Programmer 5 | . . . . 5 Thug 1 | . . . . 1 Best Kill Streak 7 | 3 3 3 5 7 Combat Bots Only 5 | . 3 3 5 2 Max Kills in Single Turn 2 | 1 1 1 2 2 Gunslinging . | . . . . . Exploded 2 | . . . 2 1 Melee . | . . . . . Uniques/NPCs Destroyed . | . . . . . Combat | -11 -10 -9 -8 -7 -------- Run | Yrd Mat Mat Mat Fac Hostile Shots Fired 562 | . 43 42 202 275 Missed 161 | . 15 12 55 79 Damage Taken 4985 | . 305 344 1732 2604 Core 1004 | . 37 80 184 703 Absorbed by Shields . | . . . . . Ignored by Resistances 1437 | . 92 101 494 750 Regen/Repaired (Parts) 116 | . . . 116 . Core Remaining (%) 82 | 100 85 80 66 . Volleys Fired 238 | 5 38 26 95 74 Largest 3 | 2 2 2 2 3 Hottest 217 | 60 80 88 119 217 Shots Fired 409 | 10 73 52 131 143 Gun 274 | 10 73 49 71 71 Cannon 114 | . . 3 57 54 Launcher 21 | . . . 3 18 Special . | . . . . . Kinetic 167 | 5 27 49 85 1 Thermal 186 | 5 35 3 43 100 Explosive 21 | . . . 3 18 Electromagnetic 35 | . 11 . . 24 Robot Hit Streak 40 | 7 15 36 40 29 Robot Miss Streak 3 | . 2 3 2 3 Penetration Max . | . . . . . Secondary Targets 1 | . 1 . . . Max Gunslinging Chain 1 | . 1 . . . Shots Hit Robots 309 | 7 44 41 104 113 Core Hits 155 | 6 18 17 51 63 Critical Kills . | . . . . . Critical Parts Destroyed . | . . . . . Critical Strikes 2 | . 1 . . 1 Burn 1 | . . . . 1 Corrupt 1 | . 1 . . . Melee Attacks . | . . . . . Impact . | . . . . . Slashing . | . . . . . Piercing . | . . . . . Sneak Attacks . | . . . . . Combat Hostiles . | . . . . . Follow-up Attacks . | . . . . . Damage Inflicted 6778 | 78 468 470 2353 3409 Guns 2892 | 78 468 449 848 1049 Cannons 1961 | . . 21 1076 864 Explosions 1919 | . . . 423 1496 Melee . | . . . . . Ramming 6 | . . . 6 . Kinetic 1837 | 19 94 449 1258 17 Thermal 2682 | 59 252 21 666 1684 Explosive 1865 | . . . 423 1442 Electromagnetic 388 | . 122 . . 266 Impact . | . . . . . Slashing . | . . . . . Piercing . | . . . . . Highest Corruption 16 | . 1 1 8 16 Average Corruption 5 | . 1 1 7 5 Corruption Purged . | . . . . . Corruption Blocked . | . . . . . Effects 91 | . 5 4 26 56 Message Errors 16 | . . 1 5 10 Matter Fused 23 | . 1 1 8 13 Heat Flow Errors 15 | . . 2 1 12 Energy Discharges 10 | . 1 . 3 6 Parts Rejected 3 | . 1 . 1 1 Parts Fused 2 | . . . 1 1 Data Loss (minor) 8 | . 1 . 3 4 Data Loss (major) 6 | . . . 1 5 Misfires 5 | . 1 . 1 3 Weapon Failures 3 | . . . 2 1 Overload Shots . | . . . . . Overflow Damage 95 | . . . . 95 Projectiles 22 | . . . . 22 Explosions 73 | . . . . 73 Melee . | . . . . . Knockbacks 4 | . . . 4 . Impact . | . . . . . Kinetic 4 | . . . 4 . Secondary . | . . . . . Self-Inflicted Damage 320 | . 60 . . 260 Shots 14 | . 1 . . 13 Rammed . | . . . . . Targets Rammed 2 | . . . 2 . Kicked 2 | . . . 2 . Crushed . | . . . . . Highest Temperature 324 | 40 85 142 227 324 Average Temperature 63 | 15 32 40 46 78 Received Heat Transfer 2007 | . 195 189 1080 543 Effects 1 | . . . . 1 Energy Bleed 1 | . . . . 1 Siege Activations . | . . . . . Robots Corrupted . | . . . . . Combat Hostiles . | . . . . . Parts Fried 2 | . 1 . . 1 Impact Corruptions . | . . . . . Robots Melted 1 | . . . . 1 Combat Hostiles 1 | . . . . 1 Parts Melted 18 | . . . 2 16 Heat Transferred 5222 | 125 575 37 1369 3116 Parts Sabotaged . | . . . . . Parts Stolen . | . . . . . Parts Stripped . | . . . . . Power Chain Reactions 1 | . . . . 1 Alert | -11 -10 -9 -8 -7 ------- Run | Yrd Mat Mat Mat Fac Peak Influence 334 | 25 249 84 334 206 Initial 93 | . 13 17 30 93 Average 64 | 4 108 28 171 37 Maximum Alert Level 1 | . 1 . 1 1 Low Security (%) 89 | 100 75 100 57 98 Level 1 10 | . 25 . 42 1 Level 2 . | . . . . . Level 3 . | . . . . . Level 4 . | . . . . . Level 5 . | . . . . . High Security . | . . . . . Max Security . | . . . . . Squads Dispatched 18 | . 2 3 4 9 Investigation 7 | . 2 3 2 . Extermination 6 | . . . . 6 Reinforcement 5 | . . . 2 3 Assault . | . . . . . Garrison . | . . . . . Intercept . | . . . . . Searches Triggered . | . . . . . Construction Impeded 1 | . . . . 1 Haulers Reinforced 1 | . . . . 1 Active Scanning Responses . | . . . . . Cargo Convoy Interrupts . | . . . . . Stealth | -11 -10 -9 -8 -7 --------- Run | Yrd Mat Mat Mat Fac Distress Signals 7 | . 1 2 4 . Communications Jammed . | . . . . . Distress Signals . | . . . . . Times Spotted 76 | . 10 10 32 24 Peak Tracking Total 7 | . 3 3 7 4 Tactical Retreats 1 | . 1 . . . Traps | -11 -10 -9 -8 -7 ------- Run | Yrd Mat Mat Mat Fac Traps Triggered 5 | . 3 2 . . Indirectly . | . . . . . Trap Hack Attempts . | . . . . . Triggered . | . . . . . Disarmed . | . . . . . Reprogrammed . | . . . . . Reused . | . . . . . Traps Extracted . | . . . . . Installed . | . . . . . Triggered . | . . . . . Machines | -11 -10 -9 -8 -7 ---------- Run | Yrd Mat Mat Mat Fac Machines Disabled 8 | . 1 . 1 6 Max in Single Turn 4 | . 1 . 1 4 Machines Repaired . | . . . . . Machines Dismantled . | . . . . . Machines Sabotaged . | . . . . . Overloaded Fab Kills . | . . . . . Hacking | -11 -10 -9 -8 -7 --------- Run | Yrd Mat Mat Mat Fac Machines Accessed 12 | . 2 6 3 1 Terminals 9 | . 2 6 1 . Fabricators . | . . . . . Repair Stations 2 | . . . 1 1 Recycling Units . | . . . . . Scanalyzers 1 | . . . 1 . Garrison Access . | . . . . . Total Hacks 41 | . 7 22 9 3 Successful 25 | . 7 10 5 3 Failed 16 | . . 12 4 . Catastrophic 3 | . . 2 1 . Database Lockouts . | . . . . . Manual . | . . . . . Terminals 31 | . 7 22 2 . Fabricators . | . . . . . Repair Stations 7 | . . . 4 3 Recycling Units . | . . . . . Scanalyzers 3 | . . . 3 . Garrison Access . | . . . . . Terminal Hacks 17 | . 7 10 . . Record 4 | . 2 2 . . Prototype ID Bank 3 | . 2 1 . . Branch Access Points 1 | . . 1 . . Alert Level 1 | . . 1 . . Dispatch Records 3 | . 1 2 . . Transport Status 3 | . 2 1 . . Recall Investigation 1 | . . 1 . . Zone Layout 1 | . . 1 . . Fabricator Hacks . | . . . . . Repair Station Hacks 5 | . . . 2 3 Scan Component 3 | . . . 1 2 Repair 2 | . . . 1 1 Recycling Unit Hacks . | . . . . . Scanalyzer 3 | . . . 3 . Insert Component 2 | . . . 2 . Analyze 1 | . . . 1 . Garrison Access Hacks . | . . . . . Unauthorized Hacks . | . . . . . Terminals . | . . . . . Fabricators . | . . . . . Repair Stations . | . . . . . Recycling Units . | . . . . . Scanalyzers . | . . . . . Garrison Access . | . . . . . Data Cores Recovered . | . . . . . Used . | . . . . . Hacking Detections 8 | . 1 4 3 . Full Trace Events 7 | . 1 4 2 . Feedback Events 1 | . . 1 . . Corruption 1 | . . 1 . . Feedback Blocked . | . . . . . Robot Schematics Acquired . | . . . . . Robots Built . | . . . . . Authchips . | . . . . . Time . | . . . . . Total Robot Build Rating . | . . . . . Part Schematics Acquired 1 | . . . 1 . Parts Built . | . . . . . Authchips . | . . . . . Time . | . . . . . Total Part Build Rating . | . . . . . Parts Repaired 1 | . . . 1 . Time 51 | . . . 25 26 Parts Recycled . | . . . . . Recycled Matter . | . . . . . Retrieved Matter . | . . . . . Retrieved Components . | . . . . . Parts Scanalyzed 1 | . . . 1 . Part Schematics Acquired 1 | . . . 1 . Parts Damaged . | . . . . . Bothacking | -11 -10 -9 -8 -7 ------------ Run | Yrd Mat Mat Mat Fac Used RIF Installer . | . . . . . Robots Hacked . | . . . . . Non-combat . | . . . . . Combat . | . . . . . Robot Hacks Applied . | . . . . . Relay Couplers Released . | . . . . . Fabnet Peak Effective % . | . . . . . Robots Rewired . | . . . . . Allies Hacked . | . . . . . Hacks Repelled . | . . . . . Allies | -11 -10 -9 -8 -7 -------- Run | Yrd Mat Mat Mat Fac Total Allies . | . . . . . Largest Group . | . . . . . Highest-Rated Group . | . . . . . Highest-Rated Ally . | . . . . . Total Orders . | . . . . . Ally Attacks . | . . . . . Total Damage . | . . . . . Kills . | . . . . . Allies Corrupted . | . . . . . Allies Melted . | . . . . . Intel | -11 -10 -9 -8 -7 ------- Run | Yrd Mat Mat Mat Fac Robot Analysis Total . | . . . . . Derelict Logs Recovered . | . . . . . Drone Launches . | . . . . . Drone Recoveries . | . . . . . Exploration | -11 -10 -9 -8 -7 ------------- Run | Yrd Mat Mat Mat Fac Turns Passed 6333 | 129 476 1507 1141 3080 Spaces Moved 1330 | 54 227 348 214 487 Core 71 | 29 . . . 42 Treads 2 | . . . . 2 Legs 1232 | 25 227 348 214 418 Wheels . | . . . . . Hover . | . . . . . Flight 25 | . . . . 25 Fastest Speed 50 | 50 120 400 330 330 Average Speed 394 | 82 156 400 384 541 Slowest Speed 1700 | 120 400 400 750 1700 Overloaded Moves . | . . . . . Propulsion Burnouts . | . . . . . Robots Hopped . | . . . . . Cave-ins Triggered . | . . . . . Exploration Rate (%) 21 | 4 35 36 20 11 Regions Visited 4 Branch Regions . Pre-discovered Areas . | . . . . . Known Exits Taken 2 | . . 1 1 . Unknown Exits Taken 2 | 1 1 . . . Scrap Searched . | . . . . . Spaces Dug . | . . . . . Terrain Destroyed 89 | . 20 . 24 45 Melee . | . . . . . Projectile 2 | . . . 2 . AOE 87 | . 20 . 22 45 Terrain Rammed . | . . . . . Walls Destroyed . | . . . . . Machines Disabled . | . . . . . Actions | -11 -10 -9 -8 -7 --------- Run | Yrd Mat Mat Mat Fac Total 2038 | 129 284 418 395 812 Wait 284 | 55 1 3 40 185 Move 1326 | 53 226 347 213 487 Hop . | . . . . . Pick Up 84 | 9 8 24 17 26 Fast Attach 2 | 1 . . . 1 Attach 54 | 6 6 5 18 19 Detach 4 | . 1 2 1 . Swap 22 | . 2 7 6 7 Drop 22 | . 2 4 3 13 Fire 238 | 5 38 26 95 74 Melee . | . . . . . Ram . | . . . . . Kick 2 | . . . 2 . Crush . | . . . . . Escape Stasis . | . . . . . Rewire . | . . . . . Trap . | . . . . . Miscellaneous . | . . . . . Route ------- -11/Scrapyard -10/Materials (discovered 2 exits: *Mat / [*Min]) -9/Materials (discovered 3 exits: *Mat / *Min x2) -8/Materials (discovered 2 exits: *Fac / *Sto) -7/Factory History --------- Turn | Location | Event 15 | -11/Scrapyard | Discovered new exit (range 16) 130 | -11/Scrapyard | Entered Materials 234 | -10/Materials | Discovered new exit (range 13) 300 | -10/Materials | Build established: Mutant 368 | -10/Materials | Discovered new exit (range 16) 606 | -10/Materials | Entered another Materials area 606 | -9/Materials | Evolved 2 slots: Utility x2 787 | -9/Materials | Met 8R-AWN 807 | -9/Materials | Discovered new exit (range 15) 876 | -9/Materials | Identified exit to Mines 1262 | -9/Materials | Discovered new exit (range 16) 1504 | -9/Materials | Build established: Scavenger-Mutant 2103 | -9/Materials | Identified exit to Materials 2113 | -9/Materials | Entered another Materials area 2113 | -8/Materials | Evolved 2 slots: Utility x2 2431 | -8/Materials | Discovered new exit (range 9) 2553 | -8/Materials | Lost 8 parts (1p2n4u1w) 2567 | -8/Materials | Identified exit to Storage 2831 | -8/Materials | Repaired Adv. Beam Cannon 2900 | -8/Materials | Discovered new exit (range 10) 3251 | -8/Materials | Identified exit to Factory 3254 | -8/Materials | Entered Factory 3254 | -7/Factory | Evolved 2 slots: Power x1, Weapon x1 3559 | -7/Factory | Build established: Scavenger-Tank 4315 | -7/Factory | P-60 Hacker assimilated allied FB-ZQO(g) 5463 | -7/Factory | Lost 4 parts (1n1u2w) 5739 | -7/Factory | Build established: Gunner 6203 | -7/Factory | Build established: Tank 6270 | -7/Factory | System corruption reached 10% 6293 | -7/Factory | Core integrity fell below 50% 6314 | -7/Factory | Core integrity fell below 20% 6334 | -7/Factory | Destroyed by H-55 Commando with Assault Rifle Last Messages --------------- 06292_ Penetrated by Slug. 06292_ U-05 Engineer lays Concrete. 06295_ Slug penetrates U-05 Engineer. 06295_ U-05 Engineer lays Concrete. 06301_ Penetrated by Slug. 06302_ Com. Battery destroyed. 06305_ P-60 Hacker resets U-05 Engineer, system corruption cleaned. 06308_ JU 5N1K:6>%/O3MPOQ7FS 06322_ Slug penetrates K-01 Serf. 06324_ System corrupted: Matter fused (-7). 06328_ Penetrated by Slug. 06328_ Recalibrator destroyed. 06329_ Imp. Cesium-ion Thruster destroyed. 06331_ Slug penetrates Wall. 06331_ P-60 Hacker resets U-05 Engineer, system corruption cleaned. 06333_ Critical hit (Burn: +37). 06333_ Imp. Cesium-ion Thruster destroyed. Map ----- +----------------------------------------------------+ | ?????????????????????????????????????????????????? | | ?????????????????????????????????????????????????? | | ?????????????????????????????????????????????????? | | ?????????????????????????????????????????????????? | | ?????????????????????????????????????????????????? | | ????????#############????????????????????????????? | | ######### #????????????????????????????? | | ! # !#????????????????????????????? | | # #????????????????????????????? | | "" """" / #????????????????????????????? | | "" """" # #????????????????????????????? | | "" """" # #????????????????????????????? | | "" """" # #????????????????????????????? | | / !#????????????????????????????? | | "" """" # #????????????????????????????? | | "" """" # #????????????????????????????? | | "" """" # #????????????????????????????? | | "" """" # #????????????????????????????? | | # #??????????????? ??????????? | | ##+#########+######################u ??????????? | | r %ru ??????????? | | % rh ?????????? | | % % u ?????????? | | ????????? | | ????????? | | % u @ ????????? | | %p % ga ????????? | | #####################u################???????????? | | ??????? """ # ?????????????????????????? | | ??????# """ # " " ???????????????????????? | | ??????# """ !## " " ??????????????????????? | | ??????# ## " " #????????????????????? | | ??????# ## " " ? #????????????????????? | | ??????##+####### " "??? #????????????????????? | | ???????? ??????# ?" "????? #????????????????????? | | ???????? ??????+ ?? "?????? #????????????????????? | | ??????????????????????????? #????????????????????? | | ????????????????????????????#????????????????????? | | ?????????????????????????????????????????????????? | | ?????????????????????????????????????????????????? | | ?????????????????????????????????????????????????? | | ?????????????????????????????????????????????????? | | ?????????????????????????????????????????????????? | | ?????????????????????????????????????????????????? | | ?????????????????????????????????????????????????? | | ?????????????????????????????????????????????????? | | ?????????????????????????????????????????????????? | | ?????????????????????????????????????????????????? | | ?????????????????????????????????????????????????? | | ?????????????????????????????????????????????????? | +----------------------------------------------------+ Best States ------------- Heat Dissipation 78 Energy Generation 23 Energy Capacity 400 Matter Stores 300 Matter Capacity 300 Sight Range 16 Robot Scan Range 14 Terrain Scan Density 10 ECM Strength 2 Armor Coverage 450 Resistance: KI 20 Resistance: TH 20 Resistance: EX 20 Resistance: EM 20 Resistance: I 20 Resistance: S 20 Resistance: P 20 Evasion (%) 55 Recoil Reduction 1 Offensive Hacking 10 Item Schematics ----------------- Adv. Beam Cannon | -8/Materials | Scanalyzed Robot Schematics ------------------ None Fabricated ------------ Nothing Alien Tech Used ----------------- None Achievements -------------- Maybe Next Time I'll Detach My Launcher Challenges ------------ None Game ------ Seed ThermalTeslaBroadsword Manual? 0 Play Time 00:57:09 Cumulative 11.6 hours Start 2024.04.01 @ 18:56:16 End 2024.04.01 @ 19:57:21 Sessions 1 Manual Loads 0 Difficulty Adventurer Special Mode None Game No. 23 Rogue 22 Adventurer 1 Explorer 0 Win Type - Total 0 Types 0/0/0/0/0/0/0/0/0 Lore% 6 Gallery% 16 Achievement% 16 Wizard Run 0 Options --------- Layout 1 ASCII 0 Keyboard 0 Movement Mouse Keybinds 0 Fullscreen 1 Font 24/Smallcaps Map View 50x35 Zoom Use 0% Tactical HUD 1 Map Filters NONE Filters NONE Steam 1 RUN: 0dc65ffe-061c-4028-846f-601fb9eb4155